Cogmind - Beta 16 @@@ ROGUE MODE // 2025.11.29 @ 22:30:07 Player: shapeshifter Result: Destroyed by 0Q-Y1U(z) with Zionite Laser-S Performance ------------- Evolutions (4) 2000 Regions Visited (10) 2000 Robots Destroyed (65) 325 Value Destroyed (2278) 2278 Prototype IDs (33) 660 Alien Tech Used (0) 0 Bonus (4022) 4022 TOTAL SCORE: 11285 Bonus ------- Follower Combat Kills 191 Delivered SUBCON Basin 2000 Registered with UFD 300 Met Optimus in HQ 500 Met Imprinter 300 Destroyed Z-Imprinter 1000 Friendly Fire -269 Cogmind --------- Core Integrity 0/850 Matter 300/300 Energy 52/100 System Corruption 0% Temperature Cool (9) Movement Walking (120) Location -6/Deep Caves Parts ------- > --- POWER (1) -------- (None) > --- PROPULSION (4) --- Enhanced Flexi-carbon Leg > --- UTILITY (8) ------ Experimental Heat Sink Large Storage Unit Enhanced Optical Array Improved Signal Interpreter > --- WEAPON (2) ------- CR-A16's Pointy Stick > --- INVENTORY (15) --- Experimental Heat Sink Zionite Metafield Generator Zionite Weapon Casing A0-MCA's Component Scanner Tech Extrapolator Hacking Drone Bay (1/1) Amulet of Y3-NDR Remote Datajack CPS Tube (2) Multitool DRS Beacon (Ready) Peak State ------------ > --- POWER ------------ Meta Core > --- PROPULSION ------- VSS Leg VSS Leg Armored Leg Enhanced Flexi-carbon Leg > --- UTILITY ---------- Experimental Heat Sink Large Storage Unit Enhanced Optical Array Improved Signal Interpreter Jamming Amplifier Enhanced Scrap Shield > --- WEAPON ----------- Zionite Laser-M Zionite Laser-M Zionite Laser-M > --- INVENTORY -------- Experimental Heat Sink Zionite Metafield Generator A0-MCA's Component Scanner Tech Extrapolator Hacking Drone Bay Amulet of Y3-NDR Improved Proton Missile Launcher Remote Datajack CPS Tube Multitool CR-A16's Pointy Stick DRS Beacon [Rating: 95] Favorites ----------- Power Light Ion Engine Engine Light Ion Engine Power Core Fission Core Propulsion VSS Leg Treads Light Treads Leg VSS Leg Wheel Subdweller Monowheel Hover Unit Zionite Glidesys II Utility Huge Storage Unit Device IFF Parser Storage Huge Storage Unit Processor Enhanced Optical Array Protection Insulated Plating Weapon Slug Cannon Energy Gun EM Shotgun Energy Cannon Cooled Plasma Cannon Ballistic Gun Coil Gun Ballistic Cannon Slug Cannon Launcher Improved Proton Missile Launcher Special Weapon CPS Tube Piercing Weapon CR-A16's Pointy Stick Build | -11 -10 -10 -10 -9 -9 -6 -6 -6 -6 -6 ------- Run | Yrd Mat Min Sub Rec Scr Fac Low Low Zio Dee Slots Evolved 8 | . . . . . . 8 . . . . Power . | . . . . . . . . . . . Propulsion 2 | . . . . . . 2 . . . . Utility 6 | . . . . . . 6 . . . . Weapon . | . . . . . . . . . . . Parts Attached 108 | 7 9 6 22 2 5 32 4 3 5 13 Power 9 | 1 1 1 3 . . 2 . . . 1 Engine 5 | 1 . 1 2 . . 1 . . . . Core 4 | . 1 . 1 . . 1 . . . 1 Reactor . | . . . . . . . . . . . Propulsion 29 | 2 2 2 10 2 2 6 . 1 . 2 Treads 5 | 2 . . 2 . . 1 . . . . Leg 6 | . . . . . . 4 . 1 . 1 Wheel 17 | . 2 2 8 2 2 1 . . . . Hover 1 | . . . . . . . . . . 1 Flight . | . . . . . . . . . . . Utility 39 | 2 5 . 3 . 1 16 2 2 2 6 Device 21 | 1 3 . 2 . . 6 . 2 2 5 Storage 4 | 1 2 . . . . 1 . . . . Processor 5 | . . . . . . 4 1 . . . Hackware . | . . . . . . . . . . . Protection 9 | . . . 1 . 1 5 1 . . 1 Artifact . | . . . . . . . . . . . Weapon 31 | 2 1 3 6 . 2 8 2 . 3 4 Energy Gun 9 | . . 3 2 . . 1 . . . 3 Energy Cannon 3 | . . . . . . 2 . . . 1 Ballistic Gun 6 | 2 1 . 2 . . . 1 . . . Ballistic Cannon 8 | . . . 2 . 2 4 . . . . Launcher 1 | . . . . . . . . . 1 . Special Weapon 3 | . . . . . . 1 1 . 1 . Impact Weapon . | . . . . . . . . . . . Slashing Weapon . | . . . . . . . . . . . Piercing Weapon 1 | . . . . . . . . . 1 . Special Melee Weapon . | . . . . . . . . . . . Unidentified Prototypes 14 | . . . 1 . . 2 1 1 1 8 Parts Lost 25 | . 1 3 3 . . 4 1 1 . 12 Power 4 | . . . 1 . . 1 . . . 2 Propulsion 6 | . . 1 . . . . . 1 . 4 Utility 6 | . . . . . . 3 1 . . 2 Weapon 9 | . 1 2 2 . . . . . . 4 Highest Loss Streak 9 | . 1 3 2 . . 1 1 1 . 9 To Critical Strikes . | . . . . . . . . . . . Average Backups 14 | 2 15 18 12 10 21 18 13 12 12 10 Power . | . 1 . . . . . . . . . Propulsion 2 | . 3 4 5 2 . 1 1 . . . Utility 6 | . 5 7 2 3 15 8 4 5 4 4 Weapon 3 | . 4 6 3 3 1 3 2 2 2 2 Tool/Special . | . . . . . . . . . . . Unused Backups 52 | . 2 . 18 . 9 14 1 . 3 5 Power . | . . . . . . . . . . . Propulsion 1 | . . . . . . 1 . . . . Utility 25 | . . . 7 . 4 8 1 . 2 3 Weapon 21 | . 2 . 8 . 5 4 . . 1 1 Tool/Special 5 | . . . 3 . . 1 . . . 1 Average Slot Usage (%) 94 | . 100 99 95 100 86 88 98 99 97 81 Engine 7 | . 9 13 9 14 14 1 . . . . Core 3 | . 4 . 2 . . 4 6 6 6 5 Treads 2 | . 9 . 5 . . 2 . . . . Leg 8 | . . . . . . 13 26 26 26 23 Wheel 13 | . 18 27 22 28 15 6 . . . . Device 12 | . 14 14 11 14 1 11 12 19 20 8 Storage 10 | . 14 14 11 14 14 6 6 6 6 5 Processor 8 | . . . . . . 16 21 26 20 18 Protection 4 | . . . 2 . 12 13 10 . 2 4 Energy Gun 2 | . . 27 3 . . . . . . 2 Energy Cannon 2 | . . . . . . 3 6 6 6 5 Ballistic Gun 7 | . 28 . 16 . . . . 6 3 . Ballistic Cannon 8 | . . . 7 28 27 5 . . . . Peak Build Rating 95 | 7 14 15 38 37 31 71 69 73 79 95 Average Rating 40 | 5 10 13 20 33 26 63 67 71 73 73 On Entrance 36 | . 7 14 13 37 23 31 64 65 73 73 Avg Prop Armor Cover (%) 4 | . . . 10 . 4 3 . . . . Naked Turns . | . . . . . . . . . . . Heaviest Build 131 | 13 89 92 99 99 104 131 52 46 65 59 Greatest Support 68 | 40 40 24 40 40 40 56 52 52 52 68 Greatest Overweight (x) 8 | . 3 3 4 2 8 3 . . 1 1 Average Overweight (x) 1 | . 1 2 1 2 4 . . . . . Largest Inventory Capacity 25 | 8 25 25 25 25 25 25 15 15 15 15 Average Capacity 20 | 7 17 24 21 25 25 19 15 15 15 15 Most Carried 25 | 5 24 23 25 25 25 25 15 15 15 15 Average Carried 17 | 2 15 18 17 22 22 19 14 14 14 14 Final Capacity 25 | 8 25 20 25 25 25 15 15 15 15 15 Final Carried 25 | 4 23 18 25 21 25 15 15 15 15 11 Class Distribution -------------------- 85% | Mutant 8% | Scavenger-Mutant 4% | Derelict-Mutant Dominant Class ---------------- Mutant | -10/Materials Mutant | -10/Mines Mutant | -10/Subcaves Scavenger-Mutant | -9/Recycling Mutant | -9/Scraptown Mutant | -6/Factory Mutant | -6/Lower Caves Mutant | -6/Lower Caves Mutant | -6/Zion Mutant | -6/Deep Caves Resources | -11 -10 -10 -10 -9 -9 -6 -6 -6 -6 -6 ----------- Run | Yrd Mat Min Sub Rec Scr Fac Low Low Zio Dee Matter Collected 2977 | 205 345 173 619 168 30 753 259 67 126 232 Remotely . | . . . . . . . . . . . Salvage Created 2675 | 77 474 138 379 44 . 737 229 49 . 548 Parts 166 | 11 30 13 19 2 . 36 9 2 . 44 Haulers Intercepted 2 | . 1 . . . . 1 . . . . Recyclers Shooed 1 | 1 . . . . . . . . . . Parts Field Recycled . | . . . . . . . . . . . Retrieved Matter . | . . . . . . . . . . . Parts Self-Destructed 25 | . . . 9 . . . 9 7 . . Prevented 6 | . . . . . . . . 6 . . Parts Restored . | . . . . . . . . . . . Kills | -11 -10 -10 -10 -9 -9 -6 -6 -6 -6 -6 ------- Run | Yrd Mat Min Sub Rec Scr Fac Low Low Zio Dee Combat Hostiles Destroyed 48 | . 11 4 7 . . 13 4 1 . 8 Melee 1 | . . . . . . . . . . 1 Guns 20 | . 11 2 7 . . . . . . . Cannons 18 | . . . . . . 10 4 1 . 3 AOE 6 | . . 2 . . . . . . . 4 Classes Destroyed 16 | 1 5 . 2 . . 6 1 . . 1 Worker 2 | . . . . . . 2 . . . . Tunneler 4 | 3 . 1 . . . . . . . . Hauler 2 | . 1 . . . . 1 . . . . Mechanic 1 | . . . . . . 1 . . . . Operator 1 | . 1 . . . . . . . . . Watcher 5 | . 1 . . . . 4 . . . . Swarmer 7 | . 3 2 . . . 1 1 . . . Grunt 14 | . 8 2 1 . . 3 . . . . Brawler 1 | . . . . . . 1 . . . . Duelist 2 | . . . . . . . 2 . . . Sentry 3 | . . . . . . 2 1 . . . Hunter 3 | . . . . . . 3 . . . . Programmer 4 | . . . . . . 3 . 1 . . Artisan 2 | . . . 2 . . . . . . . Subdweller 8 | . . . 6 2 . . . . . . Z-Light 7 | . . . . . . . . . . 7 Best Kill Streak 5 | 2 3 2 2 . . 3 1 1 . 5 Combat Bots Only 5 | . 3 2 2 . . 2 1 1 . 5 Max Kills in Single Turn 3 | 1 2 1 1 2 . 1 1 1 . 3 Gunslinging 1 | . 1 . . . . . . . . . Exploded 3 | . . 1 . . . . . . . 3 Melee 1 | . . . . . . . . . . 1 Uniques/NPCs Destroyed 1 | . . . . . . . . . . 1 Z-Imprinter (-6/Deep Caves) Combat | -11 -10 -10 -10 -9 -9 -6 -6 -6 -6 -6 -------- Run | Yrd Mat Min Sub Rec Scr Fac Low Low Zio Dee Hostile Shots Fired 418 | . 57 22 34 2 . 168 28 6 . 101 Missed 134 | . 8 8 10 . . 65 11 3 . 29 Hits 284 | . 49 14 24 2 . 103 17 3 . 72 Melee 1 | . . . . . . . 1 . . . Projectile 283 | . 49 14 24 2 . 103 16 3 . 72 AOE 5 | . . . 4 . . . . 1 . . Critical Strikes 1 | . . . . . . 1 . . . . Part Disruptions 1 | . . . . . . 1 . . . . Damage Taken 5648 | . 547 232 766 31 . 1203 403 160 . 2306 Core 1029 | . 33 7 117 . . 130 75 . . 667 Absorbed by Shields . | . . . . . . . . . . . Ignored by Resistances 63 | . . . . . . 63 . . . . Core Remaining (%) 68 | 100 . . . . 37 . . . . . Volleys Fired 330 | 9 52 10 67 2 . 128 22 4 4 32 Largest 3 | 2 2 2 2 2 . 2 1 1 1 3 Hottest 219 | 40 40 90 110 80 . 130 35 35 105 219 Shots Fired 521 | 18 103 20 133 4 . 174 21 5 4 39 Gun 244 | 18 103 20 91 . . . . 2 . 10 Cannon 271 | . . . 42 4 . 172 21 3 4 25 Launcher 2 | . . . . . . . . . . 2 Special 4 | . . . . . . 2 . . . 2 Kinetic 327 | 18 103 9 110 4 . 81 . 2 . . Thermal 156 | . . . 2 . . 91 21 3 4 35 Explosive . | . . . . . . . . . . . Electromagnetic 34 | . . 11 21 . . . . . . 2 Robot Hit Streak 13 | 3 10 9 13 2 . 11 9 2 . 4 Robot Miss Streak 4 | 3 3 2 4 1 . 4 1 1 . 4 Penetration Max 1 | . . . 1 . . 1 . . . . Secondary Targets 2 | . 1 1 . . . . . . . . Max Gunslinging Chain 1 | . 1 1 . . . . . . . . Shots Hit Robots 256 | 10 63 16 49 2 . 78 13 2 . 23 Core Hits 107 | 3 22 11 20 2 . 26 5 1 . 17 Critical Kills 5 | . 1 . 2 . . 2 . . . . Critical Parts Destroyed 1 | . . . . 1 . . . . . . Critical Strikes 16 | . 1 . 5 1 . 9 . . . . Meltdown 2 | . . . . . . 2 . . . . Destroy 7 | . 1 . 5 1 . . . . . . Blast 7 | . . . . . . 7 . . . . Melee Attacks 6 | . . . . . . . . . 1 5 Impact . | . . . . . . . . . . . Slashing . | . . . . . . . . . . . Piercing 6 | . . . . . . . . . 1 5 Sneak Attacks . | . . . . . . . . . . . Combat Hostiles . | . . . . . . . . . . . Follow-up Attacks . | . . . . . . . . . . . Damage Inflicted 6377 | 123 805 279 1050 97 . 2347 415 79 . 1182 Guns 1846 | 123 805 187 563 . . . . . . 168 Cannons 4022 | . . . 487 97 . 2299 415 79 . 645 Explosions 430 | . . 92 . . . . . . . 338 Melee 31 | . . . . . . . . . . 31 Ramming 48 | . . . . . . 48 . . . . Kinetic 3270 | 123 805 52 802 97 . 1391 . . . . Thermal 2439 | . . 92 15 . . 908 415 79 . 930 Explosive . | . . . . . . . . . . . Electromagnetic 589 | . . 135 233 . . . . . . 221 Impact . | . . . . . . . . . . . Slashing . | . . . . . . . . . . . Piercing 31 | . . . . . . . . . . 31 Highest Corruption 6 | . . . . . . 6 6 6 6 . Average Corruption 5 | . . . . . . 3 6 6 6 . Corruption Purged . | . . . . . . . . . . . Corruption Blocked . | . . . . . . . . . . . Effects 84 | . . . . . . 30 19 34 1 . Message Errors 17 | . . . . . . 6 2 8 1 . Matter Fused 17 | . . . . . . 5 4 8 . . Heat Flow Errors 12 | . . . . . . 6 2 4 . . Energy Discharges 12 | . . . . . . 4 5 3 . . Parts Fused 1 | . . . . . . 1 . . . . Data Loss (minor) 15 | . . . . . . 7 3 5 . . Data Loss (major) 3 | . . . . . . . 1 2 . . Misfires 2 | . . . . . . . . 2 . . Alerts 2 | . . . . . . . 1 1 . . Weapon Failures 3 | . . . . . . 1 1 1 . . Overload Shots 10 | . . . . . . . . . 4 6 Overflow Damage 190 | . . 4 . . . 95 12 . . 79 Projectiles 157 | . . . . . . 95 12 . . 50 Explosions 33 | . . 4 . . . . . . . 29 Melee . | . . . . . . . . . . . Knockbacks 9 | . . . 1 . . 8 . . . . Impact . | . . . . . . . . . . . Kinetic 8 | . . . 1 . . 7 . . . . Secondary 1 | . . . . . . 1 . . . . Self-Inflicted Damage 271 | . . 54 . . . 24 . . . 193 Shots 5 | . . 1 . . . . . . . 4 Rammed 1 | . . . . . . 1 . . . . Targets Rammed 1 | . . . . . . 1 . . . . Kicked . | . . . . . . . . . . . Crushed . | . . . . . . . . . . . Highest Temperature 316 | . 9 84 . 33 . 316 209 232 92 295 Average Temperature 86 | . 3 31 . 18 . 98 69 98 45 106 Received Heat Transfer 1326 | . 264 78 90 9 . 144 72 12 . 657 Effects 2 | . . . . . . 1 . . . 1 Energy Bleed 1 | . . . . . . . . . . 1 Interference 1 | . . . . . . 1 . . . . Siege Activations . | . . . . . . . . . . . Martial Activations . | . . . . . . . . . . . Shielding Activations . | . . . . . . . . . . . Robots Disrupted . | . . . . . . . . . . . Combat Hostiles . | . . . . . . . . . . . Robots Corrupted . | . . . . . . . . . . . Combat Hostiles . | . . . . . . . . . . . Parts Fried 6 | . . 1 3 . . . . . . 2 Impact Corruptions . | . . . . . . . . . . . Robots Melted 3 | . . . . . . 3 . . . . Combat Hostiles 3 | . . . . . . 3 . . . . Parts Melted 19 | . . . . 1 . 9 3 1 . 5 Heat Transferred 3013 | . . 100 37 . . 1287 650 100 . 839 Parts Sabotaged . | . . . . . . . . . . . Parts Stolen . | . . . . . . . . . . . Parts Stripped . | . . . . . . . . . . . Power Chain Reactions 4 | . . 2 . . . . . . . 2 Alert | -11 -10 -10 -10 -9 -9 -6 -6 -6 -6 -6 ------- Run | Yrd Mat Min Sub Rec Scr Fac Low Low Zio Dee Maximum Alert Level . | . . . . . . . . . . . Low Security (%) 100 | 100 100 100 . 100 . 100 . . . . Level 1 . | . . . . . . . . . . . Level 2 . | . . . . . . . . . . . Level 3 . | . . . . . . . . . . . Level 4 . | . . . . . . . . . . . Level 5 . | . . . . . . . . . . . High Security . | . . . . . . . . . . . Max Security . | . . . . . . . . . . . Peak Influence 198 | 10 97 84 . 114 . 198 . . . . Initial . | . . . . . . . . . . . Average 51 | 1 29 10 . 36 . 92 . . . . Influence Increases 1747 | 15 389 143 91 327 . 632 120 30 . . Destroy 0b10 Robot/C 800 | . 220 100 60 60 . 260 80 20 . . Destroy 0b10 Robot/NC 80 | 15 15 5 . 5 . 40 . . . . Destroy Leader 204 | . 64 20 10 . . 90 10 10 . . Allied During Kill 52 | . . 11 21 19 . 1 . . . . Successful Hack 38 | . 14 . . 10 . 14 . . . . Select Force Hacks 240 | . 60 . . 180 . . . . . . Disable Machine 105 | . . . . 15 . 90 . . . . Destroy Structure 123 | . 1 7 . 38 . 77 . . . . Lose Combat Pursuer 105 | . 15 . . . . 60 30 . . . Influence Decreases 1747 | 15 389 143 91 327 . 449 303 30 . . Entered New Map 68 | . . . . . . . 68 . . . Time Decay 1568 | 15 379 133 81 287 . 418 225 30 . . Lost Part 60 | . 10 10 . . . 30 10 . . . Lost Ally 51 | . . . 10 40 . 1 . . . . Squads Dispatched 15 | . 5 . . . . 10 . . . . Investigation 8 | . 3 . . . . 5 . . . . Extermination 4 | . . . . . . 4 . . . . Reinforcement 3 | . 2 . . . . 1 . . . . Assault . | . . . . . . . . . . . Garrison . | . . . . . . . . . . . Intercept . | . . . . . . . . . . . Searches Triggered . | . . . . . . . . . . . Construction Impeded . | . . . . . . . . . . . Haulers Reinforced . | . . . . . . . . . . . Active Scanning Responses . | . . . . . . . . . . . Cargo Convoy Interrupts . | . . . . . . . . . . . Stealth | -11 -10 -10 -10 -9 -9 -6 -6 -6 -6 -6 --------- Run | Yrd Mat Min Sub Rec Scr Fac Low Low Zio Dee Distress Signals 4 | . 2 . . . . 2 . . . . Communications Jammed 1 | . . . . . . 1 . . . . Distress Signals 1 | . . . . . . 1 . . . . Times Spotted 84 | . 18 5 17 3 . 26 5 1 . 9 Peak Tracking Total 6 | . 4 3 2 2 . 5 5 1 . 6 Tactical Retreats 6 | . 1 . . . . 3 2 . . . Traps | -11 -10 -10 -10 -9 -9 -6 -6 -6 -6 -6 ------- Run | Yrd Mat Min Sub Rec Scr Fac Low Low Zio Dee Traps Triggered 4 | . 1 . 2 . . . . 1 . . Indirectly . | . . . . . . . . . . . Trap Hack Attempts . | . . . . . . . . . . . Triggered . | . . . . . . . . . . . Disarmed . | . . . . . . . . . . . Reprogrammed . | . . . . . . . . . . . Reused . | . . . . . . . . . . . Traps Extracted . | . . . . . . . . . . . Installed . | . . . . . . . . . . . Triggered . | . . . . . . . . . . . Machines | -11 -10 -10 -10 -9 -9 -6 -6 -6 -6 -6 ---------- Run | Yrd Mat Min Sub Rec Scr Fac Low Low Zio Dee Machines Disabled 11 | . . . 1 1 . 6 . . 3 . Max in Single Turn 1 | . . . 1 . . 1 . . 1 . Machines Repaired . | . . . . . . . . . . . Machines Dismantled . | . . . . . . . . . . . Machines Sabotaged . | . . . . . . . . . . . Overloaded Fab Kills . | . . . . . . . . . . . Hacking | -11 -10 -10 -10 -9 -9 -6 -6 -6 -6 -6 --------- Run | Yrd Mat Min Sub Rec Scr Fac Low Low Zio Dee Machines Accessed 32 | . 8 . 4 11 1 8 . . . . Terminals 12 | . 6 . . 4 . 2 . . . . Fabricators 1 | . . . . . . 1 . . . . Repair Stations . | . . . . . . . . . . . Recycling Units 13 | . 2 . . 7 . 4 . . . . Scanalyzers 1 | . . . . . . 1 . . . . Garrison Access . | . . . . . . . . . . . Total Hacks 83 | . 23 . 9 34 1 16 . . . . Successful 40 | . 10 . 9 17 1 3 . . . . Failed 43 | . 13 . . 17 . 13 . . . . Catastrophic 8 | . 2 . . 3 . 3 . . . . Database Lockouts . | . . . . . . . . . . . Manual 42 | . 16 . . 18 . 7 . . 1 . Terminals 33 | . 19 . . 10 . 4 . . . . Fabricators 2 | . . . . . . 2 . . . . Repair Stations . | . . . . . . . . . . . Recycling Units 36 | . 4 . . 24 . 8 . . . . Scanalyzers 2 | . . . . . . 2 . . . . Garrison Access . | . . . . . . . . . . . Terminal Hacks 14 | . 1 . 9 2 1 1 . . . . Record 6 | . . . 6 . . . . . . . Robot Schematic 1 | . . . . 1 . . . . . . Open Door 1 | . . . 1 . . . . . . . Terminal Index 1 | . . . . 1 . . . . . . Zone Layout 2 | . 1 . . . . 1 . . . . Proto ID Catalog 2 | . . . 1 . 1 . . . . . Release Object 1 | . . . 1 . . . . . . . Fabricator Hacks . | . . . . . . . . . . . Repair Station Hacks . | . . . . . . . . . . . Recycling Unit Hacks 8 | . 2 . . 6 . . . . . . Retrieve Components 8 | . 2 . . 6 . . . . . . Scanalyzer 1 | . . . . . . 1 . . . . Retrieve Study 1 | . . . . . . 1 . . . . Garrison Access Hacks . | . . . . . . . . . . . Unauthorized Hacks 17 | . 7 . . 9 . 1 . . . . Terminals 8 | . 5 . . 3 . . . . . . Skim 8 | . 5 . . 3 . . . . . . Fabricators . | . . . . . . . . . . . Repair Stations . | . . . . . . . . . . . Recycling Units 9 | . 2 . . 6 . 1 . . . . Tunnel 8 | . 2 . . 6 . . . . . . Fedlink 1 | . . . . . . 1 . . . . Scanalyzers . | . . . . . . . . . . . Garrison Access . | . . . . . . . . . . . Data Cores Recovered . | . . . . . . . . . . . Used . | . . . . . . . . . . . Hacking Detections 21 | . 6 . . 8 . 7 . . . . Full Trace Events 5 | . . . . 1 . 4 . . . . Feedback Events 2 | . . . . . . 2 . . . . Corruption 2 | . . . . . . 2 . . . . Feedback Blocked . | . . . . . . . . . . . Robot Schematics Acquired 5 | . . . . 1 . . . . 4 . Robots Built . | . . . . . . . . . . . Authchips . | . . . . . . . . . . . Time . | . . . . . . . . . . . Total Robot Build Rating . | . . . . . . . . . . . Part Schematics Acquired 13 | . . . . . . . . . 13 . Parts Built . | . . . . . . . . . . . Authchips . | . . . . . . . . . . . Time . | . . . . . . . . . . . Total Part Build Rating . | . . . . . . . . . . . Part Studies Acquired 1 | . . . . . . 1 . . . . Parts Repaired . | . . . . . . . . . . . Time . | . . . . . . . . . . . Parts Recycled . | . . . . . . . . . . . Recycled Matter . | . . . . . . . . . . . Retrieved Matter . | . . . . . . . . . . . Retrieved Components 15 | . 4 . . 11 . . . . . . Parts Scanalyzed . | . . . . . . . . . . . Part Schematics Acquired . | . . . . . . . . . . . Parts Damaged . | . . . . . . . . . . . Bothacking | -11 -10 -10 -10 -9 -9 -6 -6 -6 -6 -6 ------------ Run | Yrd Mat Min Sub Rec Scr Fac Low Low Zio Dee Used RIF Installer . | . . . . . . . . . . . Robots Hacked 1 | . . . . . . 1 . . . . Non-combat 1 | . . . . . . 1 . . . . Combat . | . . . . . . . . . . . Robot Hacks Applied 1 | . . . . . . 1 . . . . find_chute 1 | . . . . . . 1 . . . . Relay Couplers Released . | . . . . . . . . . . . Fabnet Peak Effective % . | . . . . . . . . . . . Robots Rewired . | . . . . . . . . . . . Allies Hacked . | . . . . . . . . . . . Hacks Repelled . | . . . . . . . . . . . Allies | -11 -10 -10 -10 -9 -9 -6 -6 -6 -6 -6 -------- Run | Yrd Mat Min Sub Rec Scr Fac Low Low Zio Dee Total Allies 23 | . . 3 10 . . . . 6 4 . Largest Group 8 | . . 3 8 8 4 4 . 4 4 4 Highest-Rated Group 324 | . . 40 152 152 76 76 . 324 231 231 Highest-Rated Ally 96 | . . 16 19 19 19 19 . 81 96 96 Total Orders . | . . . . . . . . . . . Ally Attacks 118 | . . 7 48 19 . 16 . 3 . 25 Total Damage 1910 | . . 70 608 580 . 270 . 19 . 363 Kills 10 | . . 1 4 4 . . . . . 1 Allies Corrupted . | . . . . . . . . . . . Allies Melted . | . . . . . . . . . . . Intel | -11 -10 -10 -10 -9 -9 -6 -6 -6 -6 -6 ------- Run | Yrd Mat Min Sub Rec Scr Fac Low Low Zio Dee Active Infowar (turns) 9302 | 62 1235 977 371 578 . 2134 686 1421 1275 563 Optics 6660 | . . . 3 578 . 2134 686 1421 1275 563 Sensors 61 | . . . . . . 61 . . . . IFF 3220 | . . . . . . 962 686 1421 151 . Terrain 800 | . 2 . . . . 798 . . . . Structural 1 | . 1 . . . . . . . . . Seismic 2639 | 62 1232 977 368 . . . . . . . Jamming 873 | . . . . . . 873 . . . . Robot Analysis Total . | . . . . . . . . . . . Derelict Logs Recovered 10 | . . 1 1 . 5 . 1 1 1 . Drone Launches . | . . . . . . . . . . . Drone Recoveries . | . . . . . . . . . . . Exploration | -11 -10 -10 -10 -9 -9 -6 -6 -6 -6 -6 ------------- Run | Yrd Mat Min Sub Rec Scr Fac Low Low Zio Dee Turns Passed 15108 | 121 1235 977 3799 1001 1889 2141 686 1421 1275 563 Spaces Moved 9584 | 52 633 654 2482 706 1128 1389 640 531 1113 256 Core 9 | 9 . . . . . . . . . . Treads 610 | 43 203 . 364 . . . . . . . Legs 3427 | . . . . . . 887 640 531 1113 256 Wheels 5538 | . 430 654 2118 706 1128 502 . . . . Hover . | . . . . . . . . . . . Flight . | . . . . . . . . . . . Fastest Speed 50 | 50 105 120 105 130 130 86 86 86 86 86 Average Speed 124 | 140 131 133 135 130 161 107 86 86 103 140 Slowest Speed 267 | 160 240 135 240 130 210 267 86 86 171 173 Overloaded Moves . | . . . . . . . . . . . Propulsion Burnouts . | . . . . . . . . . . . Robots Hopped . | . . . . . . . . . . . Potential Cave-ins . | . . . . . . . . . . . Cave-ins Triggered . | . . . . . . . . . . . Exploration Rate (%) 69 | 5 94 99 95 95 86 28 81 55 87 35 Regions Visited 10 Branch Regions 8 Pre-discovered Areas 14 | . 2 1 2 6 2 . . . 1 . Known Exits Taken 4 | . . . . . . 1 1 1 1 . Unknown Exits Taken 6 | 1 1 1 1 1 1 . . . . . Scrap Searched 27 | . . 1 10 . 8 . 3 2 3 . Spaces Dug 33 | . . . 6 . . 24 3 . . . Terrain Destroyed 137 | . . 7 21 . . 80 7 1 1 20 Melee . | . . . . . . . . . . . Projectile 123 | . . . 21 . . 80 7 1 1 13 AOE 14 | . . 7 . . . . . . . 7 Terrain Rammed . | . . . . . . . . . . . Walls Destroyed . | . . . . . . . . . . . Machines Disabled . | . . . . . . . . . . . Actions | -11 -10 -10 -10 -9 -9 -6 -6 -6 -6 -6 --------- Run | Yrd Mat Min Sub Rec Scr Fac Low Low Zio Dee Total 12293 | 82 931 735 2808 785 1201 1867 754 1490 1227 413 Wait 1936 | 2 205 63 141 64 27 242 79 949 83 81 Move 9574 | 51 632 653 2481 705 1127 1388 639 530 1112 256 Hop . | . . . . . . . . . . . Pick Up 148 | 12 25 . 41 11 23 27 2 . 4 3 Fast Attach 36 | . . . 3 . 2 10 4 1 3 13 Attach 54 | 7 1 3 13 . 2 15 2 2 3 6 Detach 10 | . . . 2 . . 2 . 1 1 4 Swap 51 | . 10 4 10 2 1 14 . 2 7 1 Drop 144 | 1 6 2 50 1 19 38 6 . 9 12 Fire 330 | 9 52 10 67 2 . 128 22 4 4 32 Melee 6 | . . . . . . . . . 1 5 Ram 1 | . . . . . . 1 . . . . Kick . | . . . . . . . . . . . Crush . | . . . . . . . . . . . Escape Stasis . | . . . . . . . . . . . Rewire . | . . . . . . . . . . . Trap . | . . . . . . . . . . . Miscellaneous 3 | . . . . . . 2 . 1 . . Route ------- -11/Scrapyard -10/Materials (discovered 4 exits: *Mat x3 / [*Min]) -10/Mines (discovered 3 exits: *Mat x2 / *Sub) -10/Subcaves (discovered 3 exits: [*Mat x2] / *Rec) -9/Recycling (discovered 2 exits: *Fac / *Scr) -9/Scraptown (discovered 2 exits: *Fac x2) -6/Factory -6/Lower Caves -6/Lower Caves -6/Zion (discovered 2 exits: *Dee / [*Pro]) -6/Deep Caves History --------- Turn | Location | Event 5 | -11/Scrapyard | Discovered new exit (range 15) 122 | -11/Scrapyard | Entered Materials 315 | -10/Materials | Build established: Mutant 339 | -10/Materials | Discovered new exit (range 9) 595 | -10/Materials | Discovered new exit (range 16) 864 | -10/Materials | Discovered new exit (range 14) 888 | -10/Materials | Discovered new exit (range 3) 1125 | -10/Materials | Learned Storage trap positions 1158 | -10/Materials | Learned Storage emergency access door positions 1180 | -10/Materials | Learned 4 Subcaves zone layouts 1192 | -10/Materials | Learned location of 1 exit from Recycling 1206 | -10/Materials | Learned Storage emergency access door positions 1231 | -10/Materials | Loaded intel: 1 repair station location 1268 | -10/Materials | Learned Storage stockpile data 1357 | -10/Materials | Entered Mines 1358 | -10/Mines | Identified exit to Materials 1368 | -10/Mines | Met a Derelict bent on vengeance 1401 | -10/Mines | Lost 3 parts (1n2w) 1574 | -10/Mines | Discovered new exit (range 10) 1726 | -10/Mines | Assisted by bots powering up and referring to "LRC-V3" 1860 | -10/Mines | Learned location of Zion (-6) 2041 | -10/Mines | Deemed a non-threat by the Exiles lab entrance 2101 | -10/Mines | Found a hidden stash of uninstalled traps 2334 | -10/Mines | Entered Subcaves 2334 | -10/Subcaves | Accompanied by 3 allies 2659 | -10/Subcaves | Core integrity fell below 50% 2735 | -10/Subcaves | Learned 8 Materials zone layouts 2773 | -10/Subcaves | Shifting Twisted Machinery released Shrapnel Trap 2800 | -10/Subcaves | Shifting Twisted Machinery released Battle Rifle 3018 | -10/Subcaves | Visited Clippyterm 3023 | -10/Subcaves | Learned location of Deep Caves (-6) 3023 | -10/Subcaves | Learned Research security intel 3226 | -10/Subcaves | Shifting Twisted Machinery released Sub. Monowheel 3233 | -10/Subcaves | Shifting Twisted Machinery released Mak. Laser 3276 | -10/Subcaves | Visited triangular shrine 3286 | -10/Subcaves | Found Prototype Device 3286 | -10/Subcaves | Identified V3-11A's Pendant 3291 | -10/Subcaves | Befriended Subdweller 3796 | -10/Subcaves | Befriended Subdweller 3822 | -10/Subcaves | Met a Zionite searching for "candidates" 3962 | -10/Subcaves | Disturbed a concealed Subdweller 3966 | -10/Subcaves | Befriended Subdweller 4054 | -10/Subcaves | A swath of the cavern ceiling suddenly collapsed 4251 | -10/Subcaves | Befriended Subdweller 4251 | -10/Subcaves | Befriended Subdweller 4264 | -10/Subcaves | Discovered new exit (range 8) 4496 | -10/Subcaves | Befriended Subdweller 4776 | -10/Subcaves | Befriended Subdweller 4811 | -10/Subcaves | Discovered new exit (range 8) 4829 | -10/Subcaves | Shifting Twisted Machinery released Battle Rifle 4831 | -10/Subcaves | Shifting Twisted Machinery released Sub. Laser 4861 | -10/Subcaves | Visited 4L-MR0's lab 4877 | -10/Subcaves | Found Meta Core 5180 | -10/Subcaves | Found SUBCON Basin 5416 | -10/Subcaves | Befriended Subdweller 5461 | -10/Subcaves | Befriended Subdweller 5466 | -10/Subcaves | Befriended Subdweller 5673 | -10/Subcaves | Discovered new exit (range 13) 6133 | -10/Subcaves | Entered Recycling 6133 | -9/Recycling | Accompanied by 8 allies 6134 | -9/Recycling | Met a Zionite searching for Scraptown 6134 | -9/Recycling | Identified exit to Factory 6187 | -9/Recycling | Lost 3 allies 6436 | -9/Recycling | Build established: Scavenger-Mutant 6837 | -9/Recycling | Scanned before Scraplab entrance 6867 | -9/Recycling | Entered Scraplab 7116 | -9/Recycling | Discovered new exit (range 3) 7134 | -9/Recycling | Entered Scraptown 7134 | -9/Scraptown | Accompanied by 4 allies 7194 | -9/Scraptown | Visited Bundlers 7322 | -9/Scraptown | Scanned Subdweller tech in exchange for log data 7325 | -9/Scraptown | Learned Factory trap positions 7328 | -9/Scraptown | Learned Research terminal intel 7330 | -9/Scraptown | Learned location of 1 exit from Research 7331 | -9/Scraptown | Learned Research trap positions 7375 | -9/Scraptown | Discovered new exit (range 13) 7637 | -9/Scraptown | Build established: Derelict-Mutant 7712 | -9/Scraptown | Delivered V3-11A's Pendant to T0-NE2 in exchange for information 8063 | -9/Scraptown | Visited Cave Peace 8085 | -9/Scraptown | Visited Awakened 8098 | -9/Scraptown | Visited Cyclists 8145 | -9/Scraptown | Visited Comm Corps 8155 | -9/Scraptown | Visited SPCMW 8176 | -9/Scraptown | Visited UFD Registry 8176 | -9/Scraptown | Registered with UFD as "Wavefunk" 8208 | -9/Scraptown | Visited Science Guys 8295 | -9/Scraptown | Visited Observation Area 8305 | -9/Scraptown | Build established: Mutant 8326 | -9/Scraptown | Visited Supply Room 8371 | -9/Scraptown | Delivered Scrap Shield to a Scientist 8446 | -9/Scraptown | Visited Derelict Rescue Squad 8456 | -9/Scraptown | Found DRS Beacon 8483 | -9/Scraptown | Visited Science Testing Area 8496 | -9/Scraptown | Visited Junk Repository 8534 | -9/Scraptown | Visited A0-MCA Data Center 8558 | -9/Scraptown | Visited Supply Room 8582 | -9/Scraptown | Visited Curators Association 8684 | -9/Scraptown | Given a B rating by A0-MCA 8687 | -9/Scraptown | Found A0-MCA's Component Scanner 8943 | -9/Scraptown | Met Optimus 8943 | -9/Scraptown | Accepted into 0bPrime 9011 | -9/Scraptown | Discovered new exit (range 5) 9023 | -9/Scraptown | Entered Factory 9023 | -6/Factory | Accompanied by 4 allies 9023 | -6/Factory | Evolved 8 slots: Propulsion x2, Utility x6 9024 | -6/Factory | Loaded intel: 83 trap records 9218 | -6/Factory | Lost 3 allies 10103 | -6/Factory | Discovered new exit (range 3) 10910 | -6/Factory | Identified exit to Lower Caves 11129 | -6/Factory | Loaded intel: 8 recycling unit locations 11164 | -6/Factory | Entered Lower Caves 11166 | -6/Lower Caves | UFD Scientist delivered a prototype 11168 | -6/Lower Caves | Found Prototype Protection 11168 | -6/Lower Caves | Identified Enh. Scrap Shield 11362 | -6/Lower Caves | Learned Factory garrison access intel 11650 | -6/Lower Caves | Attracted the attention of an 0b10 outpost 11832 | -6/Lower Caves | Discovered new exit (range 3) 11839 | -6/Lower Caves | Identified exit to Lower Caves 11850 | -6/Lower Caves | Entered another Lower Caves area 11864 | -6/Lower Caves | Activated DRS Beacon 11984 | -6/Lower Caves | Prototype Device suddenly appears! 11992 | -6/Lower Caves | Found Prototype Device 11992 | -6/Lower Caves | Identified Amulet of Y3-NDR 12011 | -6/Lower Caves | Joined by bewildered Wizard 12011 | -6/Lower Caves | Joined by bewildered Wizard 12011 | -6/Lower Caves | Joined by bewildered Wizard 12022 | -6/Lower Caves | Joined by bewildered Wizard 12154 | -6/Lower Caves | Joined by bewildered Wizard 12154 | -6/Lower Caves | Joined by bewildered Wizard 12448 | -6/Lower Caves | Discovered new exit (range 4) 12460 | -6/Lower Caves | Identified exit to Zion 12809 | -6/Lower Caves | Learned location of 1 exit from Proximity Caves 13271 | -6/Lower Caves | Entered Zion 13284 | -6/Zion | Given A8's code to call for help 13314 | -6/Zion | System corruption cleaned by Quarantine Array 13357 | -6/Zion | Discovered new exit (range 12) 13363 | -6/Zion | Found Unknown Piercing Weapon 13371 | -6/Zion | Identified CR-A16's Pointy Stick 13493 | -6/Zion | Learned Factory emergency access door positions 13592 | -6/Zion | Given the Hacking Drone Bay 13592 | -6/Zion | Found Prototype Device 13593 | -6/Zion | Identified Hacking Drone Bay 13634 | -6/Zion | Learned Factory stockpile data 13923 | -6/Zion | Gained Derelict followers 13992 | -6/Zion | Enhanced Grunt warped into view, answering call for help 14005 | -6/Zion | Enhanced Grunt warped into view, answering call for help 14067 | -6/Zion | Discovered new exit (range 3) 14067 | -6/Zion | Saw the warning signs outside the Deep Caves entrance 14106 | -6/Zion | Found Prototype Energy Gun 14180 | -6/Zion | Identified exit to Deep Caves 14367 | -6/Zion | Turned away by Imprinter 14546 | -6/Zion | Entered Deep Caves 14546 | -6/Deep Caves | Accompanied by 4 allies 14851 | -6/Deep Caves | Attacked by Z-Imprinter 14860 | -6/Deep Caves | Attached CPS modules to Z-Imprinter. 14879 | -6/Deep Caves | Attached Meta Core, gained temporary slots: Propulsion, Utility, Weapon 14884 | -6/Deep Caves | Destroyed Z-Imprinter 14907 | -6/Deep Caves | Lost 4 allies 14919 | -6/Deep Caves | Lost 3 parts (1p1n1u) 14941 | -6/Deep Caves | Found Prototype Protection 14941 | -6/Deep Caves | Identified Zio. Weapon Casing 14949 | -6/Deep Caves | Found Prototype Device 14949 | -6/Deep Caves | Identified Zio. Metafield Generator 15062 | -6/Deep Caves | Z-Facility disabled 15079 | -6/Deep Caves | Core integrity fell below 50% 15088 | -6/Deep Caves | Found Zio. Weapon Casing 15095 | -6/Deep Caves | Core integrity fell below 20% 15109 | -6/Deep Caves | Destroyed by 0Q-Y1U(z) with Zionite Laser-S Last Messages --------------- 15082_ Arm. Leg destroyed. 15083_ VSS Leg+ destroyed. 15084_ Prototype Energy Gun fried. 15084_ WR-72Q(z) destroyed. 15084_ Chain reaction triggered in Corrupted Prototype Reactor. 15084_ Prototype Energy Gun melted. 15084_ X9-5VA(z) destroyed. 15084_ Imp. Proton Missile Launcher destroyed. 15084_ Destroyed Imp. Proton Missile Launcher. 15084_ Destroyed Phase Shifter. 15084_ GV-07R(z) destroyed. 15084_ Chain reaction triggered in Meta Core. 15087_ Temporary Propulsion slot lost. 15087_ Temporary Utility slot lost. 15088_ Acquired Zio. Weapon Casing. 15092_ Zio. Laser-M destroyed. 15101_ 1M-PLZ(z) destroyed. 15104_ Acquired 17 matter. 15106_ Jamming Amplifier destroyed. Map ----- +----------------------------------------------------+ | | | | | | | | | | | | | | | | | | | | | | | | | | | | | | | | | ???????????????????????????????###???????????????? | | ??????????????????????????????? =#????############ | | ?????????????????????????????## !#?#### | | ???????????????????????###### # !### | | ????????????## ???????## ;;; ; ;#; | | ??????????### #??### !!! ;; | | ??????????# # *=% ! | | ??????????# !%! | | ???????????# =!! | | ????????????## z@%! | | ?????????????#; %![ | | ?????????????# !! "" " """""" | | ?????????????# """"""""""""" | | ?????????????# """""""""""""" | | ?????????? """""""""""""" | | ?????????#!!# """"""""""" | | ?????????#??## """""""""""""" | | ?????????????# """"?????""""" | | ????????????# """"??????"""" | | ????????????## """"???????""" | | ?????????????# """"??????? " | | ?????????????# ""???????? | | ???????????? ""???????? | | ??????????? ""??????? | | ??????????? ""???????? | | ??????????? ""?????????? | | ????????????? ""??????????" | | ??????????????? "????????????? | | ?????????????????? "????????????? | | ???????????????????? ??????????????? | | ??????????????????????? ?????????????????? | | ????????????????????????? ???????????????????? | | ?????????????????????????????????????????????????? | | ?????????????????????????????????????????????????? | +----------------------------------------------------+ Best States ------------- Heat Dissipation 63 Energy Generation 18 Energy Capacity 310 Matter Stores 300 Matter Capacity 300 Sight Range 22 Robot Scan Range 15 Terrain Scan Range 20 Terrain Scan Density 10 Jamming Range 12 Base Temperature (-) 150 Armor Coverage 1025 Resistance: EM 15 Phase Shifting 5 Evasion (%) 57 Core Analysis 6 Recoil Reduction 2 Authchip Count 10 Item Schematics ----------------- Disruptor Cannon | -6/Zion | Archive Hvy. Plasma Cannon | -6/Zion | Archive Power Amplifier | -6/Zion | Archive Adv. Cooling System | -6/Zion | Archive Hyp. Mass Driver | -6/Zion | Archive Imp. Dynamic Insulation System | -6/Zion | Archive Power Sword | -6/Zion | Archive KE Penetrator | -6/Zion | Archive Imp. Particle Charger | -6/Zion | Archive Adv. Plasma Cannon | -6/Zion | Archive Antigrav System | -6/Zion | Archive EM Shield | -6/Zion | Archive Adv. Thermal Shield | -6/Zion | Archive Robot Schematics ------------------ I-25 Savior | -9/Recycling | Hacked G-50 Soldier | -6/Zion | Archive S-27 Virus | -6/Zion | Archive R-10 Processor | -6/Zion | Archive H-88 Terminator | -6/Zion | Archive Fabricated ------------ Nothing Repaired ---------- Nothing Studied --------- VSS Leg | -6/Factory | Hacked Alien Tech Used ----------------- None Achievements -------------- Loot Taster Rodney's Helpers Challenges ------------ None Game ------ Seed FireHardlightThrower Manual? 0 Play Time 01:28:39 Cumulative 571.9 hours Start 2025.11.29 @ 19:57:11 End 2025.11.29 @ 22:30:07 Sessions 1 Manual Loads 0 Difficulty Rogue Special Mode None Game No. 737 Rogue 737 Adventurer 0 Explorer 0 Win Type - Total 21 Types 10/1/2/2/2/0/2/2/0/0 Lore% 93 Gallery% 87 Achievement% 73 Wizard Run 0 Options --------- Layout 2 ASCII 0 Keyboard 0 Movement Mouse Keybinds 0 Fullscreen 1 Font 24/Terminus Map View 50x44 Zoom Use 0% Tactical HUD 1 Map Filters NONE Filters NONE Steam 1 RUN: 4d2278fa-d5ee-434e-8255-baa513340329